{"text_format":"1","workbook":"xlsx","n_sheets":2,"sheets":["البيانات","الجديد"],"not_rendered":{"charts":0,"images":1,"macros":1,"external_links":0,"defined_names":0,"comments":0,"pivot_tables":0},"unopened":[],"bounds":{"document_bytes":16777216,"sheet_cells":100000,"rows_first":2000,"rows_last":500,"rows_between":2000,"halvings":0,"cell_chars":16384,"cell_head_chars":4096},"cells_cut":0,"cells_raw":0,"read":"whole","date_system":"1900"}

{"sheet":"البيانات","index":0,"n_rows":77,"n_cols":52,"rows_kept":77,"cut":false,"hidden":false,"merged":[[11,37,12,37],[11,43,12,43],[4,36,4,41],[4,42,4,47],[5,23,5,24],[5,36,6,36],[5,25,5,26],[7,37,8,37],[7,43,8,43],[9,37,10,37],[9,43,10,43],[5,37,6,37],[5,38,5,39],[5,43,6,43],[5,42,6,42],[3,18,4,19],[5,18,5,19],[3,36,3,47],[0,15,3,15],[3,23,3,34],[3,22,6,22],[5,27,5,28],[4,23,4,28],[5,29,5,30],[5,31,5,32],[5,33,5,34],[5,47,6,47],[5,44,5,45],[5,46,6,46],[5,40,6,40],[5,41,6,41],[0,0,3,0],[0,2,3,2],[0,3,0,8],[0,9,0,14],[1,3,1,4],[1,5,1,6],[1,7,1,8],[1,9,1,10],[1,11,1,12],[1,13,1,14],[0,1,3,1]]}
["م","الاسم","الاستثناءات","الصف الرابع",null,null,null,null,null,"الصف الخامس",null,null,null,null,null,"بيان التوزيع"]
[null,null,null,{"$f":"X6","v":"2017-07-27"},null,{"$f":"Z6","v":"2017-07-30"},null,{"$f":"AB6","v":"2017-08-01"},null,{"$f":"AD6","v":"2017-07-27"},null,{"$f":"AF6","v":"2017-07-30"},null,{"$f":"AH6","v":"2017-08-01"}]
[null,null,null,"الفترة الاولى","الفترة الثانية","الفترة الاولى","الفترة الثانية","الفترة الاولى","الفترة الثانية","الفترة الاولى","الفترة الثانية","الفترة الاولى","الفترة الثانية","الفترة الاولى","الفترة الثانية"]
[null,null,null,{"$f":"AP8","v":"لغة عربية "},{"$f":"AP9","v":"لغة انجليزية"},{"$f":"AP10","v":"دراسات الاجتماعية"},{"$f":"AP11","v":"علوم"},{"$f":"AP12","v":"الرياضيات"},{"$f":"AP13","v":"دين"},{"$f":"AV8","v":"لغة عربية "},{"$f":"AV9","v":"دين"},{"$f":"AV10","v":"علوم"},{"$f":"AV11","v":"لغة انجليزية"},{"$f":"AV12","v":"دراسات الاجتماعية"},{"$f":"AV13","v":"الرياضيات"},null,null,null,"توزيع اللجان ",null,null,null,"ارقام اللجان","دليل توزيع اللجان",null,null,null,null,null,null,null,null,null,null,null,null,"جدول الامتحانات للصفين الرابع والخامس الابتدائى للعام 2018 / 2019"]
[1,"محمد خالد","لغة عربية ",null,2,1,null,8,5,null,null,null,6,null,null,{"$f":"COUNTA(D5:O5)","v":5},null,null,null,null,null,null,null,"الصف الرابع",null,null,null,null,null,"الصف الخامس","الصف الخامس","الصف الخامس","الصف الخامس","الصف الخامس","الصف الخامس",null,"جدول امتحانات الصف الرابع الابتدائى",null,null,null,null,null,"جدول امتحانات الصف الخامس الابتدائى"]
[2,"محمود عبدالسلام","دين",null,8,7,6,4,null,null,null,null,null,null,5,{"$f":"COUNTA(D6:O6)","v":5},null,null,"بيانات اللجان",null,null,null,null,{"$f":"$AK$8","v":"2017-07-27"},null,{"$f":"$AK$10","v":"2017-07-30"},null,{"$f":"$AK$12","v":"2017-08-01"},null,{"$f":"$AQ$8","v":"2017-07-27"},null,{"$f":"$AQ$10","v":"2017-07-30"},null,{"$f":"$AQ$12","v":"2017-08-01"},null,null,"التاريخ","اليوم","وقت الإجابة",null,"زمن الإجابة","المادة","التاريخ","اليوم","وقت الإجابة",null,"زمن الإجابة","المادة",null,null,null,"لغة عربية "]
[3,"خالد عبد الوهاب","الفترة الاولى",null,4,null,null,null,7,null,null,null,null,null,null,2,null,null,"البيانات","عدد",null,null,null,"الفترة الأولى","الفترة الثانية","الفترة الأولى","الفترة الثانية","الفترة الأولى","الفترة الثانية","الفترة الأولى","الفترة الثانية","الفترة الأولى","الفترة الثانية","الفترة الأولى","الفترة الثانية",null,null,null,"من","الى",null,null,null,null,"من","الى",null,null,null,null,null,"دين"]
[4,"عصام محمود","دراسات الاجتماعية",null,6,null,null,8,1,4,null,2,null,null,null,5,null,null,"عدد الملاحظين",32,null,null,1,{"$f":"COUNTIF(D$5:D$68,$W8)","v":1},{"$f":"COUNTIF(E$5:E$68,$W8)","v":2},2,2,1,2,2,1,1,2,0,1,null,"2017-07-27","الخميس","08:30:00","11:00:00","ساعتان ونصف","لغة عربية ","2017-07-27","الخميس","08:30:00","11:00:00","ساعتان ونصف","لغة عربية ",null,null,null,"علوم"]
[5,"رضا هاشم",null,1,8,null,null,4,null,null,null,7,2,null,null,5,null,null,"عدد اللجان",8,null,null,2,{"$f":"COUNTIF(D$5:D$68,$W9)","v":2},2,1,2,1,2,2,1,1,1,0,2,null,"2017-07-27",null,"11:30:00","01:00:00","ساعة ونصف","لغة انجليزية","2017-07-27",null,"11:30:00","01:00:00","ساعة ونصف","دين",null,null,null,"لغة انجليزية"]
[6,"عماد محمد",null,4,6,null,null,5,2,null,null,null,8,null,null,5,null,null,"عدد أيام المراقبة",6,null,null,3,2,0,1,2,2,0,0,1,2,1,1,1,null,"2017-07-30","الاحد","08:30:00","10:00:00","ساعة ونصف","دراسات الاجتماعية","2017-07-30","الاحد","08:30:00","10:00:00","ساعة ونصف","علوم",null,null,null,"دراسات الاجتماعية"]
[7,"فرحات منير",null,2,null,null,null,6,null,null,null,4,1,null,null,4,null,null,"عدد الملاحظين في كل لجنة",2,null,null,4,2,1,1,1,2,2,2,2,2,2,1,2,null,"2017-07-30",null,"10:30:00","12:00:00","ساعة ونصف","علوم","2017-07-30",null,"10:30:00","12:00:00","ساعة ونصف","لغة انجليزية",null,null,null,"الرياضيات"]
[8,"اشرف فتحى",null,8,null,2,3,null,5,null,null,null,null,6,null,5,null,null,"عدد مواد الامتحان ",12,null,null,5,1,2,2,2,2,2,1,2,0,2,2,2,null,"2017-08-01","الثلاثاء","08:30:00","10:00:00","ساعة ونصف","الرياضيات","2017-08-01","الثلاثاء","08:30:00","10:00:00","ساعة ونصف","دراسات الاجتماعية",null,null,null,"الفترة الاولى"]
[9,"اشرف ناجى",null,null,null,null,null,5,null,1,null,3,4,null,6,5,null,null,null,null,null,null,6,2,2,0,2,2,1,2,2,2,2,2,2,null,"2017-08-01",null,"10:30:00","12:00:00","ساعة ونصف","دين","2017-08-01",null,"10:30:00","12:00:00","ساعة ونصف","الرياضيات",null,null,null,"الفترة الثانية"]
[10,"ممدوح الوالى",null,null,1,null,null,6,null,8,null,null,5,null,2,5,"استاذى الكريم السلام عليكم ورحمة الله وبركاته ارجو من سيادتكم ضبط ",null,null,null,null,null,7,0,1,2,2,2,2,2,2,2,0,0,2]
[11,"حاتم سعد",null,null,null,1,null,null,7,8,4,null,null,6,null,5,"هذا الكود هو يعمل معى ولكن يوجد به بعض المشاكل ",null,null,null,null,null,8,2,2,2,0,2,1,2,2,2,1,2,1]
[12,"وليد جبر",null,null,null,null,null,7,null,null,3,1,6,null,2,5,"عند توزيع ارقام اللجان  في جدول الصف الرابع وجدول الصف الخامس لابد ان يتكرر رقم اللجنة مرتيين"]
[13,"مالك وجيه",null,3,1,null,6,null,null,null,null,4,null,5,null,5,"بمعنى رقم 1 لابد ان يتكرر مرتين رقم 2 لا بد ان يتكرر مرتين وهكذا في باقى اللجان"]
[14,"هاشم عبدالرحمن",null,5,7,null,null,null,2,null,null,6,3,null,null,5,"ولكن الكود يقوم بتكرار بعض الأرقام مرتيين وبعضها مرة واحدة ويتخطى بعضها الاخر وهذا جدول يببن توزيع الأرقام عند توزيعها في الجدول "]
[15,"صياد عبدالله",null,6,null,null,5,null,null,null,2,null,null,8,4,5,"وجزاكم الله خير"]
[16,"سعيد سويلم",null,null,null,3,1,null,null,5,8,null,null,4,null,5]
[17,"حسن عبدربه",null,null,null,null,2,null,4,6,7,null,null,5,null,5]
[18,"ربيع محمد",null,null,null,8,null,null,null,7,6,null,5,null,3,5]
[19,"ناجى عبدالحى",null,null,null,null,4,null,null,null,8,null,null,null,7,3]
[20,"طه احمد",null,null,null,4,3,null,null,1,7,null,null,null,5,5]
[21,"مراد محمد",null,8,2,5,null,null,null,null,null,null,4,null,1,5]
[22,"اسلام عبدالباسط",null,null,null,null,null,null,null,null,5,8,null,null,7,3]
[23,"هشام خويلد",null,3,5,7,null,1,8,null,null,null,null,null,null,5]
[24,"شريف نور",null,4,null,null,7,3,null,null,5,null,null,null,null,4]
[25,"جوده عوده",null,null,null,null,5,3,null,6,4,8,null,null,null,5]
[26,"احمد محمد",null,2,null,null,null,7,null,null,null,6,1,null,8,5]
[27,"منتصر عبدالسلام",null,null,null,8,1,null,null,4,null,null,null,null,null,3]
[28,"احمد مظهر",null,null,null,null,7,null,6,2,1,null,null,3,null,5]
[29,"ممدوح رضوان",null,null,5,null,2,null,null,7,null,3,null,null,6,5]
[30,"اسماعيل يسن",null,null,null,null,null,2,null,null,6,null,null,null,4,3]
[31,"محمد الوكيل",null,null,null,5,null,null,1,2,null,null,null,null,null,3]
[32,"ناصر الزيات",null,6,null,null,null,null,4,null,null,7,null,8,null,4]
[33,"رشدى اباظة"]
[34,"فريد شوقى"]
[35,"شوقى الخولى"]
[36,"منصور طه"]
[37,"عبدالمرضى الشيخ"]
[38,"نادر عبدالرحمن"]
[39,"صلاح على"]
[40,"احمد شاكر"]
[41,"عبدالفتاح عبدالله"]
[42,"محمد وليد"]
[43,"طه بيومى"]
[44,"كمال عامر"]
[45,"رمضان خليل"]
[46,"محسن جاد"]
[47,"الهادى سعد"]
[48,"عرفة حماد"]
[49,"وائل "]
[50,"احمد جلال"]
[51,"عامر احمد"]
[52,"كريم محمد"]
[53,"السيد رمضان"]
[54,"بشير عبدالفتاح"]
[55,"محمد مجدى"]
[56,"صبحى"]
[57,"حمدى"]
[58,"احمد الصياد"]
[59,"امام"]
[60,"عدنان"]
[61,"يوسف فهمى"]
[62,"إسماعيل مصطفى"]
[63,"يونس فرج"]
[64,"بلال حسن","الفترة الأولى"]
[]
[null,null,null,{"$f":"COUNTIF(D$5:D$68,$P70)","v":1},{"$f":"COUNTIF(E$5:E$68,$P70)","v":2},2,2,1,2,2,1,1,2,0,1,1,{"$f":"COUNTIF($D$5:$O$68,P70)","v":17}]
[null,null,null,{"$f":"COUNTIF(D$5:D$68,$P71)","v":2},2,1,2,1,2,2,1,1,1,0,2,2,{"$f":"COUNTIF($D$5:$O$68,P71)","v":17}]
[null,null,null,2,0,1,2,2,0,0,1,2,1,1,1,3,13]
[null,null,null,2,1,1,1,2,2,2,2,2,2,1,2,4,20]
[null,null,null,1,2,2,2,2,2,1,2,0,2,2,2,5,20]
[null,null,null,2,2,0,2,2,1,2,2,2,2,2,2,6,21]
[null,null,null,0,1,2,2,2,2,2,2,2,0,0,2,7,17]
[null,null,null,2,2,2,0,2,1,2,2,2,1,2,1,8,19]

{"sheet":"الجديد","index":1,"n_rows":77,"n_cols":52,"rows_kept":77,"cut":false,"hidden":false,"merged":[[0,0,3,0],[0,1,3,1],[0,2,3,2],[0,3,0,8],[0,9,0,14],[1,3,1,4],[1,5,1,6],[1,7,1,8],[1,9,1,10],[1,11,1,12],[1,13,1,14],[3,36,3,47],[4,23,4,28],[4,36,4,41],[4,42,4,47],[5,18,5,19],[5,33,5,34],[3,18,4,19],[3,22,6,22],[3,23,3,34],[5,31,5,32],[5,36,6,36],[5,37,6,37],[5,38,5,39],[5,40,6,40],[5,41,6,41],[5,44,5,45],[0,15,3,15],[5,23,5,24],[5,25,5,26],[5,27,5,28],[5,29,5,30],[5,46,6,46],[5,47,6,47],[7,37,8,37],[7,43,8,43],[5,42,6,42],[9,37,10,37],[9,43,10,43],[11,37,12,37],[11,43,12,43],[5,43,6,43]]}
["م","الاسم","الاستثناءات","الصف الرابع",null,null,null,null,null,"الصف الخامس",null,null,null,null,null,"بيان التوزيع"]
[null,null,null,{"$f":"X6","v":"2017-07-27"},null,{"$f":"Z6","v":"2017-07-30"},null,{"$f":"AB6","v":"2017-08-01"},null,{"$f":"AD6","v":"2017-07-27"},null,{"$f":"AF6","v":"2017-07-30"},null,{"$f":"AH6","v":"2017-08-01"}]
[null,null,null,"الفترة الاولى","الفترة الثانية","الفترة الاولى","الفترة الثانية","الفترة الاولى","الفترة الثانية","الفترة الاولى","الفترة الثانية","الفترة الاولى","الفترة الثانية","الفترة الاولى","الفترة الثانية"]
[null,null,null,{"$f":"AP8","v":"لغة عربية "},{"$f":"AP9","v":"لغة انجليزية"},{"$f":"AP10","v":"دراسات الاجتماعية"},{"$f":"AP11","v":"علوم"},{"$f":"AP12","v":"الرياضيات"},{"$f":"AP13","v":"دين"},{"$f":"AV8","v":"لغة عربية "},{"$f":"AV9","v":"دين"},{"$f":"AV10","v":"علوم"},{"$f":"AV11","v":"لغة انجليزية"},{"$f":"AV12","v":"دراسات الاجتماعية"},{"$f":"AV13","v":"الرياضيات"},null,null,null,"توزيع اللجان ",null,null,null,"ارقام اللجان","دليل توزيع اللجان",null,null,null,null,null,null,null,null,null,null,null,null,"جدول الامتحانات للصفين الرابع والخامس الابتدائى للعام 2018 / 2019"]
[1,"محمد خالد","لغة عربية ",null,8,2,null,null,null,null,null,null,4,4,6,{"$f":"COUNTA(D5:O5)","v":5},null,null,null,null,null,null,null,"الصف الرابع",null,null,null,null,null,"الصف الخامس","الصف الخامس","الصف الخامس","الصف الخامس","الصف الخامس","الصف الخامس",null,"جدول امتحانات الصف الرابع الابتدائى",null,null,null,null,null,"جدول امتحانات الصف الخامس الابتدائى"]
[2,"محمود عبدالسلام","دين",null,null,null,3,4,null,8,null,3,null,null,4,{"$f":"COUNTA(D6:O6)","v":5},null,null,"بيانات اللجان",null,null,null,null,{"$f":"$AK$8","v":"2017-07-27"},null,{"$f":"$AK$10","v":"2017-07-30"},null,{"$f":"$AK$12","v":"2017-08-01"},null,{"$f":"$AQ$8","v":"2017-07-27"},null,{"$f":"$AQ$10","v":"2017-07-30"},null,{"$f":"$AQ$12","v":"2017-08-01"},null,null,"التاريخ","اليوم","وقت الإجابة",null,"زمن الإجابة","المادة","التاريخ","اليوم","وقت الإجابة",null,"زمن الإجابة","المادة",null,null,null,"لغة عربية "]
[3,"خالد عبد الوهاب","الفترة الاولى",null,null,null,null,null,null,null,8,null,1,null,2,3,null,null,"البيانات","عدد",null,null,null,"الفترة الأولى","الفترة الثانية","الفترة الأولى","الفترة الثانية","الفترة الأولى","الفترة الثانية","الفترة الأولى","الفترة الثانية","الفترة الأولى","الفترة الثانية","الفترة الأولى","الفترة الثانية",null,null,null,"من","الى",null,null,null,null,"من","الى",null,null,null,null,null,"دين"]
[4,"عصام محمود","دراسات الاجتماعية",6,7,null,6,null,6,null,null,2,null,null,null,5,null,null,"عدد الملاحظين",34,null,null,1,{"$f":"COUNTIF(D$5:D$68,$W8)","v":2},{"$f":"COUNTIF(E$5:E$68,$W8)","v":2},2,2,2,2,2,2,2,2,2,2,null,"2017-07-27","الخميس","08:30:00","11:00:00","ساعتان ونصف","لغة عربية ","2017-07-27","الخميس","08:30:00","11:00:00","ساعتان ونصف","لغة عربية ",null,null,null,"علوم"]
[5,"رضا هاشم",null,2,3,null,5,null,null,null,null,6,null,8,null,5,null,null,"عدد اللجان",8,null,null,2,{"$f":"COUNTIF(D$5:D$68,$W9)","v":2},2,2,2,2,2,2,2,2,2,2,2,null,"2017-07-27",null,"11:30:00","01:00:00","ساعة ونصف","لغة انجليزية","2017-07-27",null,"11:30:00","01:00:00","ساعة ونصف","دين",null,null,null,"لغة انجليزية"]
[6,"عماد محمد",null,null,null,null,null,2,4,3,1,2,2,null,null,6,null,null,"عدد أيام المراقبة",6,null,null,3,2,2,2,2,2,2,2,2,2,2,2,2,null,"2017-07-30","الاحد","08:30:00","10:00:00","ساعة ونصف","دراسات الاجتماعية","2017-07-30","الاحد","08:30:00","10:00:00","ساعة ونصف","علوم",null,null,null,"دراسات الاجتماعية"]
[7,"فرحات منير",null,5,5,5,2,null,null,null,null,null,null,5,7,6,null,null,"عدد الملاحظين في كل لجنة",2,null,null,4,2,2,2,2,2,2,2,2,2,2,2,2,null,"2017-07-30",null,"10:30:00","12:00:00","ساعة ونصف","علوم","2017-07-30",null,"10:30:00","12:00:00","ساعة ونصف","لغة انجليزية",null,null,null,"الرياضيات"]
[8,"اشرف فتحى",null,null,4,null,null,3,null,8,null,1,6,null,2,6,null,null,"عدد مواد الامتحان ",12,null,null,5,2,2,2,2,2,2,2,2,2,2,2,2,null,"2017-08-01","الثلاثاء","08:30:00","10:00:00","ساعة ونصف","الرياضيات","2017-08-01","الثلاثاء","08:30:00","10:00:00","ساعة ونصف","دراسات الاجتماعية",null,null,null,"الفترة الاولى"]
[9,"اشرف ناجى",null,null,6,6,null,6,null,6,null,null,3,null,1,6,null,null,null,null,null,null,6,2,2,2,2,2,2,2,2,2,2,2,2,null,"2017-08-01",null,"10:30:00","12:00:00","ساعة ونصف","دين","2017-08-01",null,"10:30:00","12:00:00","ساعة ونصف","الرياضيات",null,null,null,"الفترة الثانية"]
[10,"ممدوح الوالى",null,null,null,3,7,5,null,4,null,null,null,null,5,5,"استاذى الكريم السلام عليكم ورحمة الله وبركاته ارجو من سيادتكم ضبط ",null,null,null,null,null,7,2,2,2,2,2,2,2,2,2,2,2,2]
[11,"حاتم سعد",null,6,1,5,null,null,1,null,null,null,1,8,null,6,"هذا الكود هو يعمل معى ولكن يوجد به بعض المشاكل ",null,null,null,null,null,8,2,2,2,2,2,2,2,2,2,2,2,2]
[12,"وليد جبر",null,1,6,null,null,null,3,null,null,5,8,5,null,6,"عند توزيع ارقام اللجان  في جدول الصف الرابع وجدول الصف الخامس لابد ان يتكرر رقم اللجنة مرتيين"]
[13,"مالك وجيه",null,null,null,null,6,null,2,3,7,3,null,3,null,6,"بمعنى رقم 1 لابد ان يتكرر مرتين رقم 2 لا بد ان يتكرر مرتين وهكذا في باقى اللجان"]
[14,"هاشم عبدالرحمن",null,8,1,7,null,2,null,null,null,null,4,null,3,6,"ولكن الكود يقوم بتكرار بعض الأرقام مرتيين وبعضها مرة واحدة ويتخطى بعضها الاخر وهذا جدول يببن توزيع الأرقام عند توزيعها في الجدول "]
[15,"صياد عبدالله",null,7,null,8,null,3,5,null,5,null,3,null,null,6,"وجزاكم الله خير"]
[16,"سعيد سويلم",null,null,null,7,5,null,null,1,2,null,null,4,5,6]
[17,"حسن عبدربه",null,null,null,null,null,1,7,7,5,4,7,null,null,6]
[18,"ربيع محمد",null,null,null,null,7,null,8,2,8,5,null,2,null,6]
[19,"ناجى عبدالحى",null,null,3,4,1,null,7,7,null,null,null,1,null,6]
[20,"طه احمد",null,null,8,null,null,null,null,6,null,6,null,2,8,5]
[21,"مراد محمد",null,5,null,1,null,null,4,null,6,null,5,7,null,6]
[22,"اسلام عبدالباسط",null,null,null,null,2,null,1,5,7,null,null,6,null,5]
[23,"هشام خويلد",null,4,null,3,4,null,8,null,3,null,null,1,null,6]
[24,"شريف نور",null,8,null,6,null,5,6,null,4,null,7,null,null,6]
[25,"جوده عوده",null,3,null,2,null,6,null,null,6,null,6,null,8,6]
[26,"احمد محمد",null,null,null,null,null,null,null,4,3,8,null,6,1,5]
[27,"منتصر عبدالسلام",null,3,null,1,null,8,null,null,1,null,5,null,3,6]
[28,"احمد مظهر",null,null,7,8,1,1,3,5,null,null,null,null,null,6]
[29,"ممدوح رضوان",null,2,5,null,null,8,null,null,null,4,8,null,null,5]
[30,"اسماعيل يسن",null,null,null,null,null,null,null,2,4,7,2,3,6,6]
[31,"محمد الوكيل",null,null,4,null,8,7,5,1,null,7,null,null,null,6]
[32,"ناصر الزيات",null,4,2,null,3,4,null,null,null,8,null,null,7,6]
[33,"رشدى اباظة",null,1,null,4,4,7,2,null,2]
[34,"فريد شوقى",null,7,2,null,8,null,null,null,null,1,null,7,4]
[35,"شوقى الخولى"]
[36,"منصور طه"]
[37,"عبدالمرضى الشيخ"]
[38,"نادر عبدالرحمن"]
[39,"صلاح على"]
[40,"احمد شاكر"]
[41,"عبدالفتاح عبدالله"]
[42,"محمد وليد"]
[43,"طه بيومى"]
[44,"كمال عامر"]
[45,"رمضان خليل"]
[46,"محسن جاد"]
[47,"الهادى سعد"]
[48,"عرفة حماد"]
[49,"وائل "]
[50,"احمد جلال"]
[51,"عامر احمد"]
[52,"كريم محمد"]
[53,"السيد رمضان"]
[54,"بشير عبدالفتاح"]
[55,"محمد مجدى"]
[56,"صبحى"]
[57,"حمدى"]
[58,"احمد الصياد"]
[59,"امام"]
[60,"عدنان"]
[61,"يوسف فهمى"]
[62,"إسماعيل مصطفى"]
[63,"يونس فرج"]
[64,"بلال حسن","الفترة الأولى"]
[]
[null,null,null,{"$f":"COUNTIF(D$5:D$68,$P70)","v":2},{"$f":"COUNTIF(E$5:E$68,$P70)","v":2},2,2,2,2,2,2,2,2,2,2,1,{"$f":"COUNTIF($D$5:$O$68,P70)","v":24}]
[null,null,null,{"$f":"COUNTIF(D$5:D$68,$P71)","v":2},2,2,2,2,2,2,2,2,2,2,2,2,{"$f":"COUNTIF($D$5:$O$68,P71)","v":24}]
[null,null,null,2,2,2,2,2,2,2,2,2,2,2,2,3,24]
[null,null,null,2,2,2,2,2,2,2,2,2,2,2,2,4,24]
[null,null,null,2,2,2,2,2,2,2,2,2,2,2,2,5,24]
[null,null,null,2,2,2,2,2,2,2,2,2,2,2,2,6,24]
[null,null,null,2,2,2,2,2,2,2,2,2,2,2,2,7,24]
[null,null,null,2,2,2,2,2,2,2,2,2,2,2,2,8,24]